[Event "*** Titled Tuesday Blitz"]
[Site "Chess.com"]
[Date "2018.01.02"]
[Round "4"]
[White "ftorodent"]
[Black "TenisMaster"]
[Result "0-1"]
[WhiteElo "2488"]
[BlackElo "2698"]
[TimeControl "180+2"]
[EndTime "13:50:41 PST"]
[Termination "TenisMaster won by resignation"]

1. d4 {[%clk 0:03:01.9]} 1... Nf6 {[%clk 0:03:00]} 2. c4 {[%clk 0:03:02.7]} 2...
e6 {[%clk 0:03:01]} 3. Nf3 {[%clk 0:03:03.3]} 3... d5 {[%clk 0:03:01.6]} 4. Nc3
{[%clk 0:03:03.5]} 4... c6 {[%clk 0:03:02.6]} 5. e3 {[%clk 0:03:04.3]} 5... Nbd7
{[%clk 0:03:02.6]} 6. Qc2 {[%clk 0:03:05.2]} 6... Bd6 {[%clk 0:03:03.1]} 7. b3
{[%clk 0:03:06.4]} 7... b6 {[%clk 0:03:00.9]} 8. Be2 {[%clk 0:03:07.1]} 8... Bb7
{[%clk 0:03:01.5]} 9. O-O {[%clk 0:03:08.2]} 9... O-O {[%clk 0:03:02.1]} 10. Bb2
{[%clk 0:03:05.3]} 10... Rc8 {[%clk 0:03:01.4]} 11. Rad1 {[%clk 0:03:00.9]}
11... c5 {[%clk 0:02:57.3]} 12. Qb1 {[%clk 0:03:01.5]} 12... cxd4 {[%clk
0:02:53.4]} 13. Nxd4 {[%clk 0:02:58.3]} 13... Bb8 {[%clk 0:02:28.1]} 14. cxd5
{[%clk 0:02:50.8]} 14... Nxd5 {[%clk 0:02:08.4]} 15. Nxd5 {[%clk 0:02:49.4]}
15... Bxd5 {[%clk 0:02:09.6]} 16. Ba6 {[%clk 0:02:33.7]} 16... Rc5 {[%clk
0:01:11.4]} 17. b4 {[%clk 0:02:01.1]} 17... Bxh2+ {[%clk 0:01:03.2]} 18. Kxh2
{[%clk 0:01:28.5]} 18... Qh4+ {[%clk 0:01:04.4]} 19. Kg1 {[%clk 0:01:29.3]}
19... Bxg2 {[%clk 0:01:05.5]} 20. f4 {[%clk 0:01:26]} 20... Rh5 {[%clk 0:00:43]}
21. Kxg2 {[%clk 0:01:05.8]} 21... Qg4+ {[%clk 0:00:41]} 22. Kf2 {[%clk
0:01:02.4]} 22... Rh2+ {[%clk 0:00:41.3]} 23. Ke1 {[%clk 0:01:02.9]} 23... Qg3+
{[%clk 0:00:42.4]} 0-1

[Event "*** Titled Tuesday Blitz"]
[Site "Chess.com"]
[Date "2018.01.02"]
[Round "4"]
[White "hypert"]
[Black "FrankieJay"]
[Result "1-0"]
[WhiteElo "2297"]
[BlackElo "2285"]
[TimeControl "180+2"]
[EndTime "13:51:03 PST"]
[Termination "hypert won on time"]

1. d4 {[%clk 0:03:01.9]} 1... Nf6 {[%clk 0:03:00.5]} 2. c4 {[%clk 0:03:03.1]}
2... g6 {[%clk 0:03:01.6]} 3. Nc3 {[%clk 0:03:04.3]} 3... Bg7 {[%clk 0:03:01.3]}
4. e4 {[%clk 0:03:04.6]} 4... O-O {[%clk 0:02:58.8]} 5. h3 {[%clk 0:03:04.6]}
5... d6 {[%clk 0:02:57.5]} 6. Bg5 {[%clk 0:03:01.1]} 6... Na6 {[%clk 0:02:49.4]}
7. Nf3 {[%clk 0:02:46.9]} 7... c5 {[%clk 0:02:41.4]} 8. d5 {[%clk 0:02:46.3]}
8... e6 {[%clk 0:02:37.2]} 9. Bd3 {[%clk 0:02:44.1]} 9... exd5 {[%clk
0:02:36.9]} 10. exd5 {[%clk 0:02:46]} 10... Re8+ {[%clk 0:02:36.4]} 11. Be3
{[%clk 0:02:46.6]} 11... Nc7 {[%clk 0:02:22.4]} 12. O-O {[%clk 0:02:46.2]} 12...
a6 {[%clk 0:02:23.5]} 13. a4 {[%clk 0:02:45.7]} 13... Bd7 {[%clk 0:02:22.2]} 14.
Qd2 {[%clk 0:02:44.1]} 14... b5 {[%clk 0:02:09.4]} 15. axb5 {[%clk 0:02:43.3]}
15... axb5 {[%clk 0:02:11.3]} 16. Bg5 {[%clk 0:02:21.4]} 16... bxc4 {[%clk
0:02:05.1]} 17. Bxc4 {[%clk 0:02:20.9]} 17... Qb8 {[%clk 0:01:57.2]} 18. Rfe1
{[%clk 0:01:59.8]} 18... Qb4 {[%clk 0:01:50.3]} 19. Rxa8 {[%clk 0:01:24.9]}
19... Rxa8 {[%clk 0:01:39.6]} 20. b3 {[%clk 0:01:24.5]} 20... h6 {[%clk
0:00:57.8]} 21. Bxf6 {[%clk 0:01:20.4]} 21... Bxf6 {[%clk 0:00:54]} 22. Ne4
{[%clk 0:01:21.9]} 22... Qxd2 {[%clk 0:00:45.5]} 23. Nfxd2 {[%clk 0:01:23.8]}
23... Be5 {[%clk 0:00:40.9]} 24. Nf3 {[%clk 0:01:23.8]} 24... Re8 {[%clk
0:00:19.5]} 25. Kf1 {[%clk 0:01:16.7]} 25... Kg7 {[%clk 0:00:05.5]} 26. Nxe5
{[%clk 0:01:17]} 26... dxe5 {[%clk 0:00:05]} 27. Nxc5 {[%clk 0:01:18]} 27... Bb5
{[%clk 0:00:02.5]} 28. d6 {[%clk 0:01:15.8]} 1-0

[Event "*** Titled Tuesday Blitz"]
[Site "Chess.com"]
[Date "2018.01.02"]
[Round "4"]
[White "colemman"]
[Black "DrVelja"]
[Result "0-1"]
[WhiteElo "2418"]
[BlackElo "2557"]
[TimeControl "180+2"]
[EndTime "13:51:05 PST"]
[Termination "DrVelja won by resignation"]

1. d4 {[%clk 0:03:01.9]} 1... Nf6 {[%clk 0:03:00.7]} 2. Nf3 {[%clk 0:03:03.2]}
2... g6 {[%clk 0:03:02.1]} 3. Nbd2 {[%clk 0:03:04.4]} 3... Bg7 {[%clk
0:03:03.6]} 4. e4 {[%clk 0:03:05.8]} 4... d5 {[%clk 0:02:58.3]} 5. e5 {[%clk
0:03:06.5]} 5... Ne4 {[%clk 0:02:59.9]} 6. Bd3 {[%clk 0:03:05.8]} 6... Nxd2
{[%clk 0:02:58.8]} 7. Bxd2 {[%clk 0:02:57.4]} 7... c5 {[%clk 0:03:00.4]} 8. c3
{[%clk 0:02:56.1]} 8... Nc6 {[%clk 0:03:01.6]} 9. Rb1 {[%clk 0:02:41.2]} 9...
O-O {[%clk 0:02:54.4]} 10. h3 {[%clk 0:02:41.3]} 10... cxd4 {[%clk 0:02:33.3]}
11. cxd4 {[%clk 0:02:41.4]} 11... f6 {[%clk 0:02:27]} 12. O-O {[%clk 0:02:39.4]}
12... fxe5 {[%clk 0:02:26.8]} 13. dxe5 {[%clk 0:02:40]} 13... Rxf3 {[%clk
0:02:12.3]} 14. Qxf3 {[%clk 0:02:34.7]} 14... Nxe5 {[%clk 0:02:13.8]} 15. Qe2
{[%clk 0:02:34]} 15... Nxd3 {[%clk 0:02:13.5]} 16. Qxd3 {[%clk 0:02:34.5]} 16...
Bf5 {[%clk 0:02:14.8]} 17. Qb3 {[%clk 0:02:29.1]} 17... Bxb1 {[%clk 0:02:16]}
18. Rxb1 {[%clk 0:02:29.8]} 18... Qd7 {[%clk 0:02:11.1]} 19. Rd1 {[%clk
0:02:29.5]} 19... e6 {[%clk 0:01:47.5]} 20. Be3 {[%clk 0:02:28.2]} 20... b6
{[%clk 0:01:44.8]} 21. Bf4 {[%clk 0:02:26.7]} 21... Rc8 {[%clk 0:01:38.5]} 22.
Re1 {[%clk 0:02:27.2]} 22... Qf7 {[%clk 0:01:14.8]} 23. Bg3 {[%clk 0:02:22.2]}
23... h5 {[%clk 0:00:56.2]} 24. h4 {[%clk 0:02:01.4]} 24... Rc4 {[%clk
0:00:55.6]} 25. Qe3 {[%clk 0:01:57.2]} 25... Re4 {[%clk 0:00:55.6]} 26. Qc1
{[%clk 0:01:58]} 26... Rxe1+ {[%clk 0:00:56.1]} 27. Qxe1 {[%clk 0:01:59.6]}
27... Bxb2 {[%clk 0:00:57.6]} 28. Qe2 {[%clk 0:01:58.6]} 28... Bg7 {[%clk
0:00:57.1]} 29. Qc2 {[%clk 0:01:56.7]} 29... e5 {[%clk 0:00:51]} 30. Qc8+ {[%clk
0:01:56.8]} 30... Kh7 {[%clk 0:00:52.4]} 31. Qb8 {[%clk 0:01:57.5]} 31... Qe7
{[%clk 0:00:47.8]} 32. Qa8 {[%clk 0:01:58.5]} 32... d4 {[%clk 0:00:47.4]} 33.
Qe4 {[%clk 0:01:57.9]} 33... Qe6 {[%clk 0:00:43.3]} 34. a4 {[%clk 0:01:52.4]}
34... Qf5 {[%clk 0:00:40.6]} 35. Qb7 {[%clk 0:01:36.7]} 35... d3 {[%clk
0:00:39.8]} 36. Qd5 {[%clk 0:01:37]} 36... e4 {[%clk 0:00:39.6]} 37. Qd6 {[%clk
0:01:34.7]} 37... Qf6 {[%clk 0:00:38]} 38. Qd5 {[%clk 0:01:32.2]} 38... Qd4
{[%clk 0:00:39.2]} 39. Qb3 {[%clk 0:01:30.6]} 39... d2 {[%clk 0:00:40.3]} 40.
Qd1 {[%clk 0:01:31.7]} 40... Qa1 {[%clk 0:00:41.9]} 41. Qxa1 {[%clk 0:01:30.3]}
41... Bxa1 {[%clk 0:00:43.8]} 0-1

[Event "*** Titled Tuesday Blitz"]
[Site "Chess.com"]
[Date "2018.01.02"]
[Round "4"]
[White "tomsishere"]
[Black "Usurpov"]
[Result "1-0"]
[WhiteElo "2269"]
[BlackElo "2315"]
[TimeControl "180+2"]
[EndTime "13:51:18 PST"]
[Termination "tomsishere won by resignation"]

1. d4 {[%clk 0:03:01.7]} 1... Nf6 {[%clk 0:03:00.6]} 2. c4 {[%clk 0:03:01.8]}
2... g6 {[%clk 0:03:01.9]} 3. f3 {[%clk 0:03:00.5]} 3... d5 {[%clk 0:02:58.4]}
4. cxd5 {[%clk 0:03:00.8]} 4... Nxd5 {[%clk 0:03:00.3]} 5. e4 {[%clk 0:03:01.7]}
5... Nb6 {[%clk 0:03:01.8]} 6. Nc3 {[%clk 0:03:01.7]} 6... Bg7 {[%clk
0:03:03.2]} 7. Be3 {[%clk 0:02:59.4]} 7... Nc6 {[%clk 0:03:03.9]} 8. Bb5 {[%clk
0:02:57.5]} 8... O-O {[%clk 0:02:59.3]} 9. Nge2 {[%clk 0:02:55.6]} 9... Bd7
{[%clk 0:02:53]} 10. O-O {[%clk 0:02:51.3]} 10... a6 {[%clk 0:02:49.1]} 11. Bd3
{[%clk 0:02:48.6]} 11... Nb4 {[%clk 0:02:46]} 12. Bb1 {[%clk 0:02:45.1]} 12...
Nc4 {[%clk 0:02:44.5]} 13. Bf2 {[%clk 0:02:42.7]} 13... Nxb2 {[%clk 0:02:20.9]}
14. Qb3 {[%clk 0:02:42.7]} 14... N4d3 {[%clk 0:02:19.9]} 15. Nc1 {[%clk
0:02:22.3]} 15... Bb5 {[%clk 0:01:49.6]} 16. Nxb5 {[%clk 0:02:12]} 16... Nxc1
{[%clk 0:01:45.1]} 17. Rxc1 {[%clk 0:02:02]} 17... axb5 {[%clk 0:01:39.8]} 18.
Qxb2 {[%clk 0:02:02.8]} 18... Ra4 {[%clk 0:01:38.1]} 19. Bc2 {[%clk 0:01:57.4]}
19... Rxd4 {[%clk 0:01:37.8]} 20. Qxb5 {[%clk 0:01:57.8]} 20... Rd2 {[%clk
0:01:35]} 21. Rab1 {[%clk 0:01:53.6]} 21... Bd4 {[%clk 0:01:28.3]} 22. Bxd4
{[%clk 0:00:19.9]} 22... Qxd4+ {[%clk 0:01:30.2]} 23. Kh1 {[%clk 0:00:21.2]}
23... Qf2 {[%clk 0:01:31.1]} 24. Qf1 {[%clk 0:00:22.2]} 24... Rxc2 {[%clk
0:01:28.6]} 25. Qxf2 {[%clk 0:00:23]} 25... Rxf2 {[%clk 0:01:30.5]} 26. Rxb7
{[%clk 0:00:23.7]} 26... Rxa2 {[%clk 0:01:25.8]} 27. Rbxc7 {[%clk 0:00:23.5]}
27... e6 {[%clk 0:01:20.6]} 28. h4 {[%clk 0:00:23.6]} 28... h5 {[%clk
0:01:20.7]} 29. Rb7 {[%clk 0:00:21.6]} 29... Kg7 {[%clk 0:00:54.9]} 30. Rcc7
{[%clk 0:00:21.4]} 30... Kf6 {[%clk 0:00:56.1]} 31. Kh2 {[%clk 0:00:22]} 31...
Rd2 {[%clk 0:00:55.2]} 32. Kg3 {[%clk 0:00:22.3]} 32... Rf2 {[%clk 0:00:56.4]}
1-0

[Event "*** Titled Tuesday Blitz"]
[Site "Chess.com"]
[Date "2018.01.02"]
[Round "4"]
[White "johnathan113"]
[Black "pandamaster3000"]
[Result "1-0"]
[WhiteElo "2412"]
[BlackElo "2251"]
[TimeControl "180+2"]
[EndTime "13:51:34 PST"]
[Termination "johnathan113 won by resignation"]

1. d4 {[%clk 0:03:01.6]} 1... Nf6 {[%clk 0:03:00.6]} 2. Nc3 {[%clk 0:03:03.5]}
2... g6 {[%clk 0:02:59.1]} 3. e4 {[%clk 0:03:04.3]} 3... d6 {[%clk 0:03:00.5]}
4. f3 {[%clk 0:03:05.7]} 4... Bg7 {[%clk 0:03:01.4]} 5. Be3 {[%clk 0:03:07.6]}
5... O-O {[%clk 0:02:43]} 6. Qd2 {[%clk 0:03:08.4]} 6... c6 {[%clk 0:02:39.3]}
7. h4 {[%clk 0:03:09.2]} 7... h5 {[%clk 0:02:38.4]} 8. Nh3 {[%clk 0:03:09.5]}
8... e5 {[%clk 0:02:38.7]} 9. Ng5 {[%clk 0:03:11.4]} 9... exd4 {[%clk
0:02:25.6]} 10. Bxd4 {[%clk 0:03:13.3]} 10... Re8 {[%clk 0:02:25.6]} 11. O-O-O
{[%clk 0:03:13.8]} 11... d5 {[%clk 0:02:24.7]} 12. exd5 {[%clk 0:03:14.3]} 12...
Nxd5 {[%clk 0:02:22.5]} 13. Bxg7 {[%clk 0:03:14.7]} 13... Kxg7 {[%clk
0:02:23.9]} 14. Nxd5 {[%clk 0:03:15]} 14... Qxd5 {[%clk 0:02:23.5]} 15. Qxd5
{[%clk 0:03:11.1]} 15... cxd5 {[%clk 0:02:25.4]} 16. Rxd5 {[%clk 0:03:12.3]}
16... Nc6 {[%clk 0:02:18.9]} 17. Bc4 {[%clk 0:03:13.7]} 17... Be6 {[%clk
0:02:15.3]} 18. Nxe6+ {[%clk 0:03:08.1]} 18... Rxe6 {[%clk 0:02:11]} 19. Rd7
{[%clk 0:03:10]} 19... Re7 {[%clk 0:02:06.6]} 20. Rxe7 {[%clk 0:03:09.8]} 20...
Nxe7 {[%clk 0:02:08.5]} 21. Rd1 {[%clk 0:03:11.2]} 21... Rc8 {[%clk 0:02:04.7]}
22. b3 {[%clk 0:03:10.4]} 22... Rc7 {[%clk 0:01:59.6]} 23. a4 {[%clk 0:03:10.8]}
23... Nf5 {[%clk 0:01:58.5]} 24. g4 {[%clk 0:03:06]} 24... hxg4 {[%clk 0:01:55]}
25. fxg4 {[%clk 0:03:07.9]} 25... Nxh4 {[%clk 0:01:49.3]} 26. Rf1 {[%clk
0:03:03.4]} 26... Ng2 {[%clk 0:01:39.9]} 27. Kd2 {[%clk 0:03:04]} 27... g5
{[%clk 0:01:29.4]} 28. Rf5 {[%clk 0:03:02.8]} 28... f6 {[%clk 0:01:30.2]} 29.
Bd5 {[%clk 0:02:57.4]} 29... Nf4 {[%clk 0:01:30.4]} 30. Be4 {[%clk 0:02:55.1]}
30... Rd7+ {[%clk 0:01:28.8]} 31. Kc3 {[%clk 0:02:54.5]} 31... Ne2+ {[%clk
0:01:20.7]} 32. Kb2 {[%clk 0:02:55.1]} 32... Ng3 {[%clk 0:01:04.9]} 33. Rd5
{[%clk 0:02:55.3]} 33... Rxd5 {[%clk 0:01:05.6]} 34. Bxd5 {[%clk 0:02:56.3]}
34... b6 {[%clk 0:01:06.6]} 35. b4 {[%clk 0:02:57.9]} 35... f5 {[%clk
0:01:07.9]} 36. gxf5 {[%clk 0:02:58.6]} 36... Nxf5 {[%clk 0:01:09.8]} 37. c4
{[%clk 0:03:00.4]} 37... Ne7 {[%clk 0:01:09.4]} 38. Bf3 {[%clk 0:02:59.7]} 38...
Kf6 {[%clk 0:01:10.8]} 39. Kc3 {[%clk 0:03:01.6]} 39... Ke5 {[%clk 0:01:12.2]}
40. c5 {[%clk 0:02:59.7]} 40... bxc5 {[%clk 0:01:08.5]} 41. bxc5 {[%clk
0:03:01.6]} 41... Kf4 {[%clk 0:01:09.2]} 42. Bh1 {[%clk 0:02:58.4]} 42... g4
{[%clk 0:00:50.4]} 43. Kb4 {[%clk 0:02:58.1]} 43... Ke5 {[%clk 0:00:48.1]} 44.
Kb5 {[%clk 0:02:56.3]} 44... Kd4 {[%clk 0:00:33.9]} 45. c6 {[%clk 0:02:55.7]}
45... Ke5 {[%clk 0:00:25]} 46. Ka6 {[%clk 0:02:56.1]} 46... Kd6 {[%clk
0:00:26.1]} 47. Kb7 {[%clk 0:02:57.2]} 47... g3 {[%clk 0:00:17.8]} 48. a5 {[%clk
0:02:58]} 48... Ke6 {[%clk 0:00:12.5]} 49. a6 {[%clk 0:02:58.3]} 49... Kd6
{[%clk 0:00:13.8]} 50. c7 {[%clk 0:02:59.2]} 50... Kd7 {[%clk 0:00:14.8]} 51.
Kb8 {[%clk 0:02:54.7]} 51... Nc8 {[%clk 0:00:13.5]} 52. Bf3 {[%clk 0:02:55]}
52... Nd6 {[%clk 0:00:10.5]} 53. Bg2 {[%clk 0:02:55.2]} 53... Nc8 {[%clk
0:00:10.6]} 54. Bh3+ {[%clk 0:02:56]} 54... Kc6 {[%clk 0:00:09.7]} 55. Bxc8
{[%clk 0:02:56.4]} 55... g2 {[%clk 0:00:10.1]} 56. Bb7+ {[%clk 0:02:58.3]} 56...
Kb6 {[%clk 0:00:11.5]} 57. Bxg2 {[%clk 0:02:55.9]} 1-0

[Event "*** Titled Tuesday Blitz"]
[Site "Chess.com"]
[Date "2018.01.02"]
[Round "4"]
[White "GM_Huschenbeth"]
[Black "MatthewG-p4p"]
[Result "1-0"]
[WhiteElo "2467"]
[BlackElo "2610"]
[TimeControl "180+2"]
[EndTime "13:51:50 PST"]
[Termination "GM_Huschenbeth won by resignation"]

1. e4 {[%clk 0:03:01.9]} 1... e6 {[%clk 0:02:43.8]} 2. d4 {[%clk 0:03:02.2]}
2... d5 {[%clk 0:02:40.9]} 3. Nc3 {[%clk 0:03:03.8]} 3... Bb4 {[%clk 0:02:41.6]}
4. e5 {[%clk 0:03:03.8]} 4... c5 {[%clk 0:02:42.6]} 5. a3 {[%clk 0:03:05.4]}
5... Bxc3+ {[%clk 0:02:44]} 6. bxc3 {[%clk 0:03:07.3]} 6... Ne7 {[%clk
0:02:45.5]} 7. Qg4 {[%clk 0:03:07.2]} 7... cxd4 {[%clk 0:02:46.8]} 8. Qxg7
{[%clk 0:03:02.2]} 8... Rg8 {[%clk 0:02:47.8]} 9. Qxh7 {[%clk 0:03:03.8]} 9...
Qc7 {[%clk 0:02:49.5]} 10. Ne2 {[%clk 0:02:42.6]} 10... Nbc6 {[%clk 0:02:47.3]}
11. f4 {[%clk 0:02:41.1]} 11... Bd7 {[%clk 0:02:47]} 12. h4 {[%clk 0:02:37.1]}
12... dxc3 {[%clk 0:02:42.1]} 13. h5 {[%clk 0:02:36.7]} 13... O-O-O {[%clk
0:02:42.8]} 14. Qd3 {[%clk 0:02:37]} 14... d4 {[%clk 0:02:44.2]} 15. h6 {[%clk
0:02:29]} 15... Rg6 {[%clk 0:02:44.9]} 16. Nxd4 {[%clk 0:02:27.3]} 16... Nxd4
{[%clk 0:02:34]} 17. Qxd4 {[%clk 0:02:29.2]} 17... Nf5 {[%clk 0:02:02.4]} 18.
Qxa7 {[%clk 0:02:27.5]} 18... Bc6 {[%clk 0:02:01.5]} 19. h7 {[%clk 0:02:18]}
19... Rh8 {[%clk 0:02:02.1]} 20. Qa8+ {[%clk 0:02:05.5]} 20... Qb8 {[%clk
0:02:01.1]} 21. Qxb8+ {[%clk 0:02:06.9]} 21... Kxb8 {[%clk 0:02:02.1]} 22. Kf2
{[%clk 0:01:46.6]} 22... Ng3 {[%clk 0:01:49.7]} 23. Rh2 {[%clk 0:01:43.4]} 23...
Rg7 {[%clk 0:01:40.2]} 24. Be3 {[%clk 0:01:22.6]} 24... Nxf1 {[%clk 0:01:24.9]}
25. Rxf1 {[%clk 0:01:19.2]} 25... Rhxh7 {[%clk 0:01:24.2]} 26. Rxh7 {[%clk
0:01:10.6]} 26... Rxh7 {[%clk 0:01:25]} 27. Bd4 {[%clk 0:00:52.6]} 27... Be4
{[%clk 0:01:25.4]} 28. Bxc3 {[%clk 0:00:46.8]} 28... Bxc2 {[%clk 0:01:26.3]} 29.
Bd4 {[%clk 0:00:39.7]} 29... Be4 {[%clk 0:01:25.7]} 30. Bb6 {[%clk 0:00:33.3]}
30... Rh2 {[%clk 0:01:22.5]} 31. Rg1 {[%clk 0:00:22.3]} 31... Kc8 {[%clk
0:01:19.3]} 32. Kg3 {[%clk 0:00:22]} 32... Rh8 {[%clk 0:01:14.9]} 33. Rc1+
{[%clk 0:00:19.7]} 33... Bc6 {[%clk 0:01:15.6]} 34. Rd1 {[%clk 0:00:20.3]} 34...
Rg8+ {[%clk 0:01:16]} 35. Kf2 {[%clk 0:00:21.4]} 35... Bxg2 {[%clk 0:01:16.3]}
36. Rg1 {[%clk 0:00:21]} 36... Rg4 {[%clk 0:01:14.2]} 37. Rxg2 {[%clk
0:00:21.4]} 37... Rxf4+ {[%clk 0:01:15.7]} 38. Ke3 {[%clk 0:00:22.9]} 38... Rh4
{[%clk 0:01:07.9]} 39. Rd2 {[%clk 0:00:23.3]} 39... Rh8 {[%clk 0:01:06.9]} 40.
Kf4 {[%clk 0:00:24.2]} 40... Rg8 {[%clk 0:01:08.1]} 41. a4 {[%clk 0:00:25]} 1-0

[Event "*** Titled Tuesday Blitz"]
[Site "Chess.com"]
[Date "2018.01.02"]
[Round "4"]
[White "sandager"]
[Black "TheNomNomFactor"]
[Result "0-1"]
[WhiteElo "1970"]
[BlackElo "2393"]
[TimeControl "180+2"]
[EndTime "13:52:04 PST"]
[Termination "TheNomNomFactor won by resignation"]

1. e4 {[%clk 0:03:01.9]} 1... e5 {[%clk 0:03:00.4]} 2. Nf3 {[%clk 0:03:02.5]}
2... Nc6 {[%clk 0:03:01.9]} 3. Bb5 {[%clk 0:03:02.2]} 3... a6 {[%clk 0:03:03.2]}
4. Ba4 {[%clk 0:03:03.4]} 4... d6 {[%clk 0:03:04.5]} 5. O-O {[%clk 0:03:04.2]}
5... Bg4 {[%clk 0:03:05.2]} 6. h3 {[%clk 0:03:04.4]} 6... h5 {[%clk 0:03:06.4]}
7. d3 {[%clk 0:03:02.8]} 7... Qf6 {[%clk 0:03:06.3]} 8. Nbd2 {[%clk 0:03:02.6]}
8... g5 {[%clk 0:03:04.2]} 9. c3 {[%clk 0:02:52.3]} 9... Bd7 {[%clk 0:03:02.4]}
10. Re1 {[%clk 0:02:48.2]} 10... g4 {[%clk 0:03:02.5]} 11. hxg4 {[%clk
0:02:38.5]} 11... hxg4 {[%clk 0:03:04.4]} 12. Nh2 {[%clk 0:02:38.8]} 12... Rxh2
{[%clk 0:02:48.8]} 13. Kxh2 {[%clk 0:02:38.6]} 13... Qxf2 {[%clk 0:02:50.1]} 14.
Nf1 {[%clk 0:02:31.7]} 14... Qh4+ {[%clk 0:01:49.5]} 15. Kg1 {[%clk 0:02:31.1]}
15... O-O-O {[%clk 0:01:41.7]} 16. Be3 {[%clk 0:02:31.4]} 16... Nge7 {[%clk
0:01:32.6]} 17. Bf2 {[%clk 0:02:30.8]} 17... Qh7 {[%clk 0:01:29.8]} 18. Ng3
{[%clk 0:02:21.2]} 18... Ng6 {[%clk 0:01:29.2]} 19. Bxc6 {[%clk 0:02:08.4]}
19... Bxc6 {[%clk 0:01:18.4]} 20. Qxg4+ {[%clk 0:02:07.4]} 20... Bd7 {[%clk
0:01:20]} 21. Qh5 {[%clk 0:02:06.8]} 21... Qg7 {[%clk 0:01:17.5]} 22. Nf5 {[%clk
0:02:03.3]} 22... Qf6 {[%clk 0:01:18.1]} 23. Bh4 {[%clk 0:01:59]} 23... Nxh4
{[%clk 0:01:17.4]} 24. Qxh4 {[%clk 0:01:59.6]} 24... Qg6 {[%clk 0:01:15.9]} 25.
Qf2 {[%clk 0:01:47.7]} 25... Kb8 {[%clk 0:01:10.1]} 26. Re3 {[%clk 0:01:45.8]}
26... Qf6 {[%clk 0:00:53.4]} 27. Rf3 {[%clk 0:01:44.6]} 27... Qe6 {[%clk
0:00:46.8]} 28. b3 {[%clk 0:01:38.6]} 28... d5 {[%clk 0:00:48.1]} 29. Rf1 {[%clk
0:01:35.6]} 29... dxe4 {[%clk 0:00:45]} 30. dxe4 {[%clk 0:01:36.4]} 30... Qc6
{[%clk 0:00:46.6]} 31. b4 {[%clk 0:01:22.2]} 31... Be6 {[%clk 0:00:47.7]} 32.
Ne3 {[%clk 0:01:16.9]} 32... Qxe4 {[%clk 0:00:47.7]} 33. Qc2 {[%clk 0:01:07]}
33... Qc6 {[%clk 0:00:45]} 34. a3 {[%clk 0:01:03.8]} 34... Bh6 {[%clk
0:00:42.9]} 35. Nf5 {[%clk 0:01:01.7]} 35... Bf4 {[%clk 0:00:36.7]} 36. g3
{[%clk 0:00:35.9]} 36... Rd2 {[%clk 0:00:35.2]} 37. Qb1 {[%clk 0:00:32.6]} 37...
Qb6+ {[%clk 0:00:32.4]} 38. Kh1 {[%clk 0:00:31.6]} 38... Bxf5 {[%clk 0:00:30.1]}
39. Qxf5 {[%clk 0:00:30.1]} 39... Qh6+ {[%clk 0:00:30.3]} 0-1

[Event "*** Titled Tuesday Blitz"]
[Site "Chess.com"]
[Date "2018.01.02"]
[Round "4"]
[White "ZapataCharlesS"]
[Black "gmmoranda"]
[Result "0-1"]
[WhiteElo "2628"]
[BlackElo "2739"]
[TimeControl "180+2"]
[EndTime "13:52:05 PST"]
[Termination "gmmoranda won by resignation"]

1. e4 {[%clk 0:03:01.9]} 1... c5 {[%clk 0:03:00.9]} 2. c3 {[%clk 0:03:00.3]}
2... d5 {[%clk 0:03:01.7]} 3. exd5 {[%clk 0:03:00.4]} 3... Qxd5 {[%clk
0:03:03.6]} 4. d4 {[%clk 0:03:00.2]} 4... Nf6 {[%clk 0:03:04.5]} 5. Nf3 {[%clk
0:02:59.1]} 5... e6 {[%clk 0:03:05.7]} 6. Qb3 {[%clk 0:02:58.2]} 6... Nc6 {[%clk
0:02:52.4]} 7. Bc4 {[%clk 0:02:50.8]} 7... Qe4+ {[%clk 0:02:52.4]} 8. Be3 {[%clk
0:02:48.3]} 8... cxd4 {[%clk 0:02:47.2]} 9. Nbd2 {[%clk 0:02:49]} 9... Qg4
{[%clk 0:02:44.4]} 10. Nxd4 {[%clk 0:02:46.5]} 10... Be7 {[%clk 0:02:35.3]} 11.
Nxc6 {[%clk 0:02:39.1]} 11... bxc6 {[%clk 0:02:35.9]} 12. O-O {[%clk 0:02:41]}
12... O-O {[%clk 0:02:32.5]} 13. h3 {[%clk 0:02:39.4]} 13... Qh5 {[%clk
0:02:30.3]} 14. Qd1 {[%clk 0:02:39.3]} 14... Qa5 {[%clk 0:02:04.6]} 15. b4
{[%clk 0:02:33]} 15... Qc7 {[%clk 0:02:04.4]} 16. Nb3 {[%clk 0:02:34.1]} 16...
Nd5 {[%clk 0:02:04.5]} 17. Bd2 {[%clk 0:02:30.4]} 17... e5 {[%clk 0:01:56.4]}
18. Qe2 {[%clk 0:02:31]} 18... Nb6 {[%clk 0:01:43.1]} 19. Bd3 {[%clk 0:02:30.5]}
19... f5 {[%clk 0:01:42.4]} 20. f3 {[%clk 0:02:26.5]} 20... Kh8 {[%clk
0:01:40.9]} 21. Rfe1 {[%clk 0:02:26.2]} 21... Bf6 {[%clk 0:01:42.1]} 22. Rac1
{[%clk 0:02:23.9]} 22... Be6 {[%clk 0:01:40.4]} 23. c4 {[%clk 0:02:25.1]} 23...
Rad8 {[%clk 0:01:39.6]} 24. Nc5 {[%clk 0:02:25.8]} 24... Bg8 {[%clk 0:01:40.1]}
25. a4 {[%clk 0:02:21.6]} 25... Nd7 {[%clk 0:01:25.7]} 26. Nxd7 {[%clk
0:02:21.7]} 26... Qxd7 {[%clk 0:01:27.2]} 27. Bc3 {[%clk 0:02:10]} 27... Qxd3
{[%clk 0:01:22.9]} 28. Qxd3 {[%clk 0:02:11.9]} 28... Rxd3 {[%clk 0:01:24.3]} 29.
Bxe5 {[%clk 0:02:13.8]} 29... Bxe5 {[%clk 0:00:53.5]} 30. Rxe5 {[%clk
0:02:15.7]} 30... g6 {[%clk 0:00:50.9]} 31. Re7 {[%clk 0:02:15.1]} 31... Rf7
{[%clk 0:00:51.7]} 32. Re8 {[%clk 0:02:13.6]} 32... Rc7 {[%clk 0:00:46.5]} 33.
b5 {[%clk 0:02:10.8]} 33... Kg7 {[%clk 0:00:37.6]} 34. Rce1 {[%clk 0:02:07.7]}
34... Rdd7 {[%clk 0:00:34]} 35. bxc6 {[%clk 0:02:03.1]} 35... Rxc6 {[%clk
0:00:35.3]} 36. R8e7+ {[%clk 0:02:04.7]} 36... Rxe7 {[%clk 0:00:36.6]} 37. Rxe7+
{[%clk 0:02:06.6]} 37... Bf7 {[%clk 0:00:38]} 38. Rxa7 {[%clk 0:02:08.5]} 38...
Rxc4 {[%clk 0:00:39.1]} 39. g4 {[%clk 0:02:02.4]} 39... Kf6 {[%clk 0:00:39.7]}
40. g5+ {[%clk 0:02:00.6]} 40... Ke6 {[%clk 0:00:41]} 41. a5 {[%clk 0:02:01.6]}
41... Ra4 {[%clk 0:00:40.1]} 42. Kf2 {[%clk 0:02:02.4]} 42... Be8 {[%clk
0:00:39.9]} 43. Rxh7 {[%clk 0:02:00.8]} 43... Rxa5 {[%clk 0:00:41.1]} 44. f4
{[%clk 0:01:53.4]} 44... Ra4 {[%clk 0:00:40.8]} 45. Ke3 {[%clk 0:01:51.9]} 45...
Re4+ {[%clk 0:00:40.8]} 46. Kf3 {[%clk 0:01:50.5]} 46... Bc6 {[%clk 0:00:41.9]}
47. Rg7 {[%clk 0:01:47.8]} 47... Rc4+ {[%clk 0:00:40.9]} 48. Kg3 {[%clk
0:01:47.8]} 48... Rc3+ {[%clk 0:00:41.8]} 49. Kh4 {[%clk 0:01:49.1]} 49... Bg2
{[%clk 0:00:34.9]} 50. Re7+ {[%clk 0:01:47.5]} 50... Kd5 {[%clk 0:00:32.8]} 51.
Re5+ {[%clk 0:01:45.2]} 51... Kd4 {[%clk 0:00:33.7]} 52. Rd5+ {[%clk 0:01:45.5]}
52... Ke3 {[%clk 0:00:34.5]} 53. Kg3 {[%clk 0:01:40.8]} 53... Bxd5 {[%clk
0:00:35]} 0-1